bitfinex/quotes_SOLUSD_20241028
["timestamp","ask_amount","ask_price","bid_price","bid_amount"]
[1730128340747,28.51775937,174.46,174.41,20.0]
[1730128340962,28.51775937,174.45,174.41,20.0]
[1730128341141,28.51775937,174.43,174.37,29.37792169]
[1730128341336,105.02575937,174.48,174.42,28.51775937]
[1730128341652,76.508,174.48,174.44,28.51775937]
[1730128341871,70.0,174.5,174.46,28.51775937]
[1730128343251,70.0,174.5,174.45,28.51775937]
[1730128343955,75.7306,174.5,174.45,28.51775937]
[1730128344153,104.24835937,174.5,174.44,28.51775937]
[1730128344365,104.24835937,174.5,174.45,20.0]
[1730128344849,75.7306,174.5,174.45,48.51775937]
[1730128345251,70.0,174.5,174.46,28.51775937]
[1730128345557,98.51775937,174.5,174.45,28.51775937]
[1730128345933,70.0,174.5,174.46,28.51775937]
[1730128346530,5.7303,174.51,174.46,28.51775937]
[1730128346734,6.3163,174.52,174.49,28.51775937]
[1730128346941,16.3066,174.53,174.49,28.51775937]
[1730128348337,70.0,174.52,174.47,28.51775937]
[1730128348547,28.51775937,174.5,174.44,28.51775937]
[1730128348751,28.51775937,174.49,174.45,20.0]
[1730128349044,98.51775937,174.5,174.45,48.51775937]
[1730128349443,98.51775937,174.5,174.44,28.51775937]
[1730128349641,104.24835937,174.5,174.45,20.0]
[1730128349847,104.24835937,174.5,174.45,48.51775937]
[1730128351344,104.24835937,174.5,174.39,15.442]
[1730128351345,104.24835937,174.5,174.44,28.51775937]
[1730128352833,70.0,174.48,174.43,28.51775937]
[1730128353166,28.51775937,174.44,174.39,28.51775937]
[1730128353370,98.51775937,174.44,174.38,28.51775937]
[1730128353531,28.51775937,174.43,174.37,29.37792169]
[1730128353939,28.51775937,174.41,174.37,0.86016232]
[1730128354156,28.51775937,174.39,174.33,34.49685841]
[1730128354338,28.51775937,174.39,174.33,28.51775937]
[1730128354538,70.0,174.4,174.32,28.51775937]
[1730128354539,28.51775937,174.37,174.32,28.51775937]
[1730128354741,70.0,174.38,174.33,28.51775937]
[1730128355263,28.51775937,174.39,174.33,28.51775937]
[1730128355561,104.93245937,174.4,174.34,28.51775937]
[1730128355949,76.4147,174.4,174.35,28.51775937]
[1730128356467,98.51775937,174.42,174.37,28.51775937]
[1730128356648,70.0,174.42,174.37,28.51775937]
[1730128357051,98.51775937,174.42,174.36,28.51775937]
[1730128357238,98.51775937,174.42,174.37,28.51775937]
[1730128357438,98.51775937,174.42,174.36,28.51775937]
[1730128357643,70.0,174.42,174.37,28.51775937]
[1730128357845,98.51775937,174.42,174.37,28.51775937]
[1730128358842,70.0,174.42,174.38,28.51775937]
[1730128359043,70.0,174.42,174.29,0.2]
[1730128359044,98.51775937,174.42,174.37,28.51775937]
[1730128360154,28.51775937,174.43,174.37,28.51775937]
[1730128360472,126.20155937,174.44,174.38,28.51775937]
[1730128361005,97.6838,174.44,174.39,28.51775937]
[1730128361867,70.0,174.46,174.43,28.51775937]
[1730128362166,98.51775937,174.46,174.41,28.51775937]
[1730128362553,28.51775937,174.46,174.41,28.51775937]
[1730128362754,92.6473,174.48,174.43,28.51775937]
[1730128362952,16.5998,174.48,174.45,28.51775937]
[1730128363180,16.5998,174.48,174.46,28.51775937]
[1730128363474,70.0,174.5,174.45,28.51775937]
[1730128364372,104.24845937,174.5,174.44,28.51775937]
[1730128365055,98.51775937,174.48,174.42,28.51775937]
[1730128365266,70.0,174.46,174.42,20.0]
[1730128365459,98.51775937,174.46,174.4,28.51775937]
[1730128365653,70.0,174.46,174.41,28.51775937]
[1730128366056,70.0,174.46,174.42,28.51775937]
[1730128366555,70.0,174.48,174.44,28.51775937]
[1730128366884,75.7308,174.5,174.45,28.51775937]
[1730128367051,70.0,174.48,174.44,28.51775937]
[1730128368578,75.7314,174.48,174.44,28.51775937]
[1730128368779,104.24915937,174.48,174.43,20.0]
[1730128369478,75.7314,174.48,174.43,48.51775937]
[1730128370576,104.24915937,174.48,174.43,48.51775937]
[1730128370981,104.24915937,174.48,174.42,28.51775937]
[1730128371180,28.51775937,174.47,174.41,28.51775937]
[1730128371382,28.51775937,174.47,174.42,20.0]
[1730128371571,70.0,174.44,174.4,28.51775937]
[1730128371775,70.0,174.44,174.39,28.51775937]
[1730128371969,98.51775937,174.46,174.4,28.51775937]
[1730128372375,5.7314,174.48,174.34,22.1019]
[1730128372376,98.51775937,174.44,174.34,22.1019]
[1730128372555,70.0,174.44,174.39,28.51775937]
[1730128372755,70.0,174.44,174.38,28.51775937]
[1730128372756,98.51775937,174.44,174.38,28.51775937]
[1730128372978,98.51775937,174.44,174.35,43.776884]
[1730128372979,28.51775937,174.43,174.39,20.0]
[1730128373190,98.51775937,174.44,174.39,20.0]
[1730128373678,98.51775937,174.44,174.38,28.51775937]
[1730128374767,28.51775937,174.45,174.39,28.51775937]
[1730128374974,70.0,174.44,174.39,28.51775937]
[1730128375383,98.51775937,174.44,174.38,28.51775937]
[1730128375759,70.0,174.42,174.38,20.0]
[1730128375990,98.51775937,174.42,174.38,20.0]
[1730128376477,28.51775937,174.39,174.33,28.51775937]
[1730128376783,28.51775937,174.38,174.33,28.51775937]
[1730128376988,28.51775937,174.39,174.33,28.51775937]
[1730128377978,28.51775937,174.39,174.34,20.0]
[1730128379876,28.51775937,174.39,174.34,28.51775937]
[1730128380087,28.51775937,174.39,174.35,20.0]
[1730128380382,22.6553,174.44,174.35,20.0]
[1730128380383,98.51775937,174.42,174.36,28.51775937]
[1730128380896,104.25105937,174.42,174.36,28.51775937]
[1730128381596,98.51775937,174.42,174.36,28.51775937]
[1730128382277,98.51775937,174.4,174.35,48.51775937]
[1730128382593,98.51775937,174.4,174.35,20.0]
[1730128382893,28.51775937,174.39,174.34,20.0]
[1730128383695,98.51775937,174.4,174.34,28.51775937]
[1730128383900,70.0,174.4,174.35,48.51775937]
[1730128384103,28.51775937,174.41,174.36,20.0]
[1730128384304,70.0,174.42,174.37,28.51775937]
[1730128384595,28.51775937,174.43,174.37,28.51775937]
[1730128384977,121.17305937,174.44,174.38,28.51775937]
[1730128385489,126.90575937,174.44,174.38,28.51775937]
[1730128386077,28.51775937,174.41,174.36,28.51775937]
[1730128386300,28.51775937,174.4,174.37,20.0]
[1730128386616,28.51775937,174.4,174.35,20.0]
[1730128386982,70.0,174.42,174.34,2.934754]
[1730128386983,28.51775937,174.37,174.34,2.934754]
[1730128387183,28.51775937,174.36,174.34,2.934754]
[1730128387384,43.64345937,174.35,174.34,2.934754]
[1730128388080,49.37895937,174.35,174.34,2.934754]
[1730128388581,73.64345937,174.35,174.34,2.934754]
[1730128389498,43.64345937,174.35,174.34,2.934754]
[1730128392099,6.1093,174.41,174.35,20.0]
[1730128392307,70.0,174.4,174.37,28.51775937]
[1730128392604,6.1093,174.41,174.37,28.51775937]
[1730128392605,30.0,174.38,174.37,28.51775937]
[1730128392986,5.733,174.43,174.37,28.51775937]
[1730128393302,86.5219,174.44,174.39,28.51775937]
[1730128393500,30.0,174.4,174.36,20.0]
[1730128393686,70.0,174.46,174.36,20.0]
[1730128393886,70.0,174.46,174.41,28.51775937]
[1730128394082,98.51775937,174.48,174.42,28.51775937]
[1730128394301,104.24905937,174.48,174.42,28.51775937]
[1730128394604,21.9553,174.49,174.36,20.0]
[1730128394605,21.9553,174.49,174.44,28.51775937]
[1730128394782,21.9553,174.49,174.46,28.51775937]
[1730128394989,70.0,174.5,174.47,28.51775937]
[1730128395300,70.0,174.5,174.46,28.51775937]
[1730128397483,28.51775937,174.49,174.43,28.51775937]
[1730128397687,70.0,174.46,174.41,28.51775937]
[1730128398105,70.0,174.46,174.37,15.8687]
[1730128398106,104.24965937,174.46,174.4,28.51775937]
[1730128398706,28.51775937,174.43,174.37,28.51775937]
[1730128398909,28.51775937,174.41,174.36,28.51775937]
[1730128399210,28.51775937,174.41,174.35,28.51775937]
[1730128399389,98.51775937,174.42,174.36,28.51775937]
[1730128400092,28.51775937,174.41,174.35,28.51775937]
[1730128400407,28.51775937,174.41,174.36,20.0]
[1730128400598,28.51775937,174.39,174.34,2.934754]
[1730128401299,98.51775937,174.42,174.36,28.51775937]
[1730128401606,5.7328,174.44,174.38,28.51775937]
[1730128401607,28.51775937,174.44,174.38,28.51775937]
[1730128401813,56.94785937,174.45,174.39,28.51775937]
[1730128402407,70.0,174.43,174.38,28.51775937]
[1730128402615,98.51775937,174.43,174.38,20.0]
[1730128403188,28.51775937,174.42,174.36,48.51775937]
[1730128404297,28.51775937,174.4,174.36,20.0]
[1730128404501,28.51775937,174.39,174.36,20.0]
[1730128404711,28.51775937,174.39,174.34,2.934754]
[1730128404907,28.51775937,174.37,174.34,2.934754]
[1730128405111,28.51775937,174.38,174.34,2.934754]
[1730128405611,28.51775937,174.36,174.34,2.934754]
[1730128405997,98.51775937,174.35,174.34,2.934754]
[1730128406188,28.51775937,174.35,174.34,2.934754]
[1730128406393,98.51775937,174.35,174.34,2.934754]
[1730128406899,104.25325937,174.35,174.34,2.934754]
[1730128407709,98.51775937,174.35,174.34,2.934754]
[1730128407920,28.51775937,174.35,174.34,2.934754]
[1730128408221,98.51775937,174.35,174.34,2.934754]
[1730128408713,104.25325937,174.35,174.34,2.934754]
[1730128410498,98.51775937,174.35,174.34,2.934754]
[1730128411001,104.25325937,174.35,174.34,2.934754]
[1730128411993,98.51775937,174.35,174.34,2.934754]
[1730128416826,104.25325937,174.35,174.34,2.934754]
[1730128416997,70.0,174.3,174.27,0.86063137]
[1730128417313,28.51775937,174.28,174.27,0.86063137]
[1730128417817,70.0,174.27,174.18,28.51775937]
[1730128418119,28.51775937,174.24,174.18,28.51775937]
[1730128418428,28.51775937,174.23,174.17,28.51775937]
[1730128419106,28.51775937,174.26,174.21,20.0]
[1730128419502,98.51775937,174.27,174.21,48.51775937]
[1730128419921,98.51775937,174.27,174.21,20.0]
[1730128419922,28.51775937,174.26,174.21,20.0]
[1730128420901,70.0,174.27,174.2,28.51775937]
[1730128420902,28.51775937,174.25,174.2,20.0]
[1730128421111,28.51775937,174.24,174.2,20.0]
[1730128421315,28.51775937,174.23,174.2,20.0]
[1730128421515,28.51775937,174.23,174.18,20.0]
[1730128422625,28.51775937,174.22,174.17,20.0]
[1730128424007,28.51775937,174.21,174.17,20.0]
[1730128424206,28.51775937,174.2,174.13,28.51775937]
[1730128424502,28.51775937,174.2,174.12,0.86125106]
[1730128424503,28.51775937,174.17,174.12,0.86125106]
[1730128424710,28.51775937,174.16,174.12,6.82295692]
[1730128424902,28.51775937,174.17,174.12,0.86125106]
[1730128425227,104.53535937,174.21,174.14,28.51775937]
[1730128425396,70.0,174.19,174.13,28.51775937]
[1730128425600,98.51775937,174.19,174.12,29.37901043]
[1730128425801,98.51775937,174.19,174.13,28.51775937]
[1730128426002,98.51775937,174.19,174.13,20.0]
[1730128426401,28.51775937,174.18,174.13,20.0]
[1730128427009,28.51775937,174.17,174.12,0.86125106]
[1730128427723,98.51775937,174.17,174.12,0.86125106]
[1730128427929,6.0176,174.21,174.12,0.86125106]
[1730128427930,28.51775937,174.14,174.12,0.86125106]
[1730128428134,28.51775937,174.13,174.07,28.51775937]
[1730128428333,28.51775937,174.11,174.05,28.51775937]
[1730128428913,28.51775937,174.09,174.03,28.51775937]
[1730128429217,98.51775937,174.1,174.04,28.51775937]
[1730128430028,28.51775937,174.11,174.05,28.51775937]
[1730128430328,98.51775937,174.14,174.08,28.51775937]
[1730128430531,70.0,174.14,174.09,28.51775937]
[1730128430727,16.6159,174.16,174.12,28.51775937]
[1730128430932,6.5161,174.17,174.13,28.51775937]
[1730128431109,70.0,174.18,174.15,28.51775937]
[1730128431510,85.6483,174.2,174.17,28.51775937]
[1730128432610,15.6483,174.2,174.17,28.51775937]
[1730128432831,114.16605937,174.2,174.14,28.51775937]
[1730128434035,85.6483,174.2,174.16,28.51775937]
[1730128435224,76.1421,174.22,174.18,28.51775937]
[1730128435540,76.1421,174.22,174.19,28.51775937]
[1730128435717,6.1421,174.22,174.19,28.51775937]
[1730128435922,76.1421,174.22,174.19,28.51775937]
[1730128436135,15.7132,174.24,174.21,28.51775937]
[1730128436629,70.0,174.24,174.21,28.51775937]
[1730128436832,70.0,174.24,174.15,28.51775937]
[1730128436833,70.0,174.24,174.19,28.51775937]
[1730128437031,70.0,174.24,174.16,20.0]
[1730128437032,70.0,174.22,174.18,28.51775937]
[1730128437234,70.0,174.22,174.17,28.51775937]
[1730128438628,70.0,174.22,174.09,15.4911]
[1730128438629,70.0,174.2,174.15,28.51775937]
[1730128439013,98.51775937,174.2,174.14,28.51775937]
[1730128439337,70.0,174.17,174.12,28.51775937]
[1730128440135,104.25925937,174.17,174.11,28.51775937]
[1730128440638,70.0,174.17,174.12,28.51775937]
[1730128440932,5.7412,174.18,174.13,28.51775937]
[1730128441135,70.0,174.21,174.17,28.51775937]
[1730128441333,70.0,174.23,174.19,28.51775937]
[1730128441536,16.5572,174.24,174.22,28.51775937]
[1730128441711,70.0,174.25,174.15,28.51775937]
[1730128441911,70.0,174.25,174.17,20.0]
[1730128442133,70.0,174.25,174.22,28.51775937]
[1730128443209,70.0,174.23,174.19,28.51775937]
[1730128443631,70.0,174.23,174.18,28.51775937]
[1730128443938,70.0,174.21,174.17,28.51775937]
[1730128444533,70.0,174.21,174.16,28.51775937]
[1730128444729,114.18195937,174.21,174.15,28.51775937]
[1730128444941,98.51775937,174.19,174.14,28.51775937]
[1730128445237,70.0,174.19,174.15,28.51775937]
[1730128445543,70.0,174.19,174.14,28.51775937]
[1730128445925,98.51775937,174.19,174.13,28.51775937]
[1730128446627,104.25885937,174.19,174.13,28.51775937]
[1730128446824,104.25885937,174.19,174.1,28.51775937]
[1730128446825,28.51775937,174.16,174.1,28.51775937]
[1730128447138,98.51775937,174.13,174.07,28.51775937]
[1730128447640,98.51775937,174.11,174.05,28.51775937]
[1730128448521,98.51775937,174.09,174.03,28.51775937]
[1730128448718,5.7444,174.08,174.03,28.51775937]
[1730128450625,34.26215937,174.08,174.03,28.51775937]
[1730128451050,104.26185937,174.09,174.03,28.51775937]
[1730128451235,75.7441,174.09,174.04,28.51775937]
[1730128451433,70.0,174.09,174.04,28.51775937]
[1730128451632,70.0,174.09,174.05,28.51775937]
[1730128451831,104.26135937,174.11,174.05,28.51775937]
[1730128452147,14.4543,174.17,174.09,28.51775937]
[1730128452148,70.0,174.13,174.09,28.51775937]
[1730128452316,75.743,174.13,174.08,28.51775937]
[1730128454046,104.26075937,174.13,174.07,28.51775937]
[1730128454216,75.743,174.13,174.08,28.51775937]
[1730128454922,75.743,174.13,174.09,28.51775937]
[1730128455943,75.743,174.13,174.08,28.51775937]
[1730128456143,70.0,174.11,174.08,28.51775937]
[1730128456528,70.0,174.11,174.07,28.51775937]
[1730128456828,75.7438,174.11,174.06,28.51775937]
[1730128457434,70.0,174.09,174.06,28.51775937]
[1730128461754,70.0,174.09,174.05,28.51775937]
[1730128463628,70.0,174.09,174.06,28.51775937]
[1730128465752,70.0,174.09,174.05,28.51775937]
[1730128466442,70.0,174.09,174.06,17.84330372]
[1730128467241,70.0,174.13,174.08,17.84330372]
[1730128467441,70.0,174.13,174.1,17.84330372]
[1730128468126,70.0,174.13,174.09,17.84330372]
[1730128468127,75.7429,174.13,174.09,17.84330372]
[1730128468333,70.0,174.13,174.1,17.84330372]
[1730128468631,5.7425,174.14,174.11,28.53349467]
[1730128469654,75.7421,174.15,174.12,28.53349467]
[1730128470235,6.2332,174.18,174.14,28.53349467]
[1730128470439,6.2332,174.18,174.16,28.53349467]
[1730128470750,70.0,174.19,174.16,28.53349467]
[1730128471138,75.7408,174.19,174.15,28.53349467]
[1730128471956,75.7408,174.19,174.14,28.53349467]
[1730128472151,104.27429467,174.19,174.13,28.53349467]
[1730128474431,104.27429467,174.19,174.12,28.53349467]
[1730128474432,70.0,174.17,174.12,28.53349467]
[1730128474637,28.53349467,174.16,174.1,28.53349467]
[1730128475351,5.8408,174.19,174.02,0.2]
[1730128475352,70.0,174.13,174.09,28.53349467]
[1730128475556,5.7431,174.12,174.08,28.53349467]
[1730128475756,70.0,174.13,174.09,28.53349467]
[1730128475928,75.7428,174.13,174.08,28.53349467]
[1730128478441,28.53349467,174.1,174.04,28.53349467]
[1730128478753,28.53349467,174.09,174.04,28.53349467]
[1730128478944,98.53349467,174.11,174.05,28.53349467]
[1730128479455,70.0,174.11,174.06,28.53349467]
[1730128479942,98.53349467,174.11,174.05,28.53349467]
[1730128480139,70.0,174.11,174.06,28.53349467]
[1730128480352,75.7437,174.11,174.06,28.53349467]
[1730128481863,5.7437,174.11,174.08,28.53349467]
[1730128482949,20.7925,174.15,174.09,28.53349467]
[1730128482950,104.97009467,174.15,174.09,28.53349467]
[1730128483148,70.0,174.15,174.11,28.53349467]
[1730128483340,70.0,174.17,174.14,28.53349467]
[1730128483561,81.8073,174.19,174.15,28.53349467]
[1730128484164,70.0,174.19,174.17,28.53349467]
[1730128484751,75.7401,174.22,174.18,28.53349467]
[1730128485742,75.7401,174.22,174.17,28.53349467]
[1730128486563,70.0,174.2,174.15,28.53349467]
[1730128486765,98.53349467,174.2,174.14,28.53349467]
[1730128487174,5.7401,174.22,174.13,28.53349467]
[1730128487175,70.0,174.16,174.13,28.53349467]
[1730128487346,70.0,174.16,174.09,20.0]
[1730128487347,70.0,174.16,174.12,28.53349467]
[1730128487738,70.0,174.16,174.11,28.53349467]
[1730128488045,75.742,174.16,174.11,28.53349467]
[1730128488458,75.742,174.16,174.11,17.8315353]
[1730128488843,93.5735353,174.16,174.1,17.8315353]
[1730128489264,87.8315353,174.14,174.09,17.8315353]
[1730128489569,87.8315353,174.12,174.06,17.8315353]
[1730128490169,75.7431,174.12,174.08,17.8315353]
[1730128491864,6.6497,174.15,174.01,16.1977]
[1730128491865,75.7427,174.14,174.1,17.8315353]
[1730128492650,70.0,174.14,174.1,17.8315353]
[1730128493057,75.7425,174.14,174.1,17.8315353]
[1730128493367,75.7425,174.14,174.06,17.8315353]
[1730128493546,75.7425,174.14,174.09,17.8315353]
[1730128495848,93.5740353,174.14,174.08,17.8315353]
[1730128496261,75.7425,174.14,174.09,17.8315353]
[1730128496472,75.7425,174.14,174.1,17.8315353]
[1730128496947,70.0,174.14,174.1,17.8315353]
[1730128497253,70.0,174.14,174.11,17.8315353]
[1730128497450,75.7419,174.16,174.12,17.8315353]
[1730128498276,70.0,174.16,174.14,17.8315353]
[1730128498944,93.5733353,174.16,174.11,17.8315353]
[1730128499148,87.8315353,174.14,174.08,17.8315353]
[1730128499344,17.8315353,174.13,174.08,17.8315353]
[1730128499547,17.8315353,174.12,174.07,17.8315353]
[1730128500354,70.0,174.16,174.11,17.8315353]
[1730128500664,70.0,174.22,174.15,35.6630706]
[1730128500842,70.0,174.22,174.19,17.8315353]
[1730128501046,70.0,174.22,174.09,16.0158]
[1730128501047,93.5714353,174.22,174.17,17.8315353]
[1730128501862,93.5714353,174.22,174.16,17.8315353]
[1730128502270,93.5714353,174.22,174.17,17.8315353]
[1730128502577,75.7399,174.22,174.18,17.8315353]
[1730128502956,75.7399,174.22,174.2,17.8315353]
[1730128503268,5.7399,174.22,174.2,17.8315353]
[1730128503580,86.2117,174.25,174.21,17.8315353]
[1730128503877,86.2117,174.25,174.23,17.8315353]
[1730128504054,91.9506,174.25,174.23,17.8315353]
[1730128505353,91.9506,174.25,174.21,17.8315353]
[1730128505577,70.0,174.23,174.2,17.8315353]
[1730128505771,70.0,174.21,174.18,17.8315353]
[1730128506461,70.0,174.21,174.16,17.8315353]
[1730128506654,70.0,174.21,174.17,17.8315353]
[1730128507176,70.0,174.23,174.2,17.8315353]
[1730128507378,5.7398,174.22,174.2,17.8315353]
[1730128507871,70.0,174.19,174.18,17.8315353]
[1730128508077,70.0,174.19,174.14,17.8315353]
[1730128508284,70.0,174.16,174.11,17.8315353]
[1730128508661,70.0,174.16,174.05,15.1449]
[1730128508662,87.8315353,174.16,174.1,17.8315353]
[1730128509076,17.8315353,174.15,174.09,17.8315353]
[1730128509278,70.0,174.14,174.09,17.8315353]
[1730128509987,70.0,174.14,174.1,17.8315353]
[1730128510791,70.0,174.12,174.09,17.8315353]
[1730128510967,70.0,174.1,174.06,17.8315353]
[1730128511159,70.0,174.1,174.02,5.95894002]
[1730128511160,94.4977353,174.1,174.04,17.8315353]
[1730128511357,5.7441,174.09,174.04,17.8315353]
[1730128511780,5.7441,174.09,174.06,17.8315353]
[1730128512373,5.7441,174.09,174.05,17.8315353]
[1730128512878,5.7441,174.09,174.06,17.8315353]
[1730128513079,5.7441,174.09,174.06,28.54926461]
[1730128513281,70.0,174.08,174.03,28.54926461]
[1730128513475,70.0,174.06,174.01,28.54926461]
[1730128513673,70.0,174.04,174.0,28.54926461]
[1730128513880,98.54926461,174.04,173.99,0.5946434]
[1730128514271,70.0,174.04,173.99,29.14390801]
[1730128514900,5.7461,174.03,173.99,29.14390801]
[1730128515061,70.0,174.04,173.99,29.14390801]
[1730128515062,70.0,174.04,174.02,28.54926461]
[1730128515258,70.0,174.02,173.99,29.14390801]
[1730128515563,70.0,174.02,173.99,0.5946434]
[1730128515873,70.0,174.04,174.01,28.54926461]
[1730128516064,70.0,174.04,174.0,28.54926461]
[1730128516382,34.29446461,174.06,173.99,0.5946434]
[1730128516383,70.0,174.02,173.99,29.14390801]
[1730128516766,70.0,174.02,173.99,0.5946434]
[1730128516767,5.7467,174.01,173.99,0.5946434]
[1730128517676,70.0,174.0,173.99,0.5946434]
[1730128518485,91.3412,174.02,173.99,0.5946434]
[1730128518692,70.0,174.04,174.01,28.54926461]
[1730128518989,70.0,174.02,173.99,29.14390801]
[1730128519286,70.0,174.0,173.99,0.5946434]
[1730128520174,70.0,174.03,173.99,29.14390801]
[1730128520761,75.7455,174.05,174.01,28.54926461]
[1730128520969,70.0,174.05,174.02,28.54926461]
[1730128521585,75.7455,174.05,174.01,28.54926461]
[1730128521780,70.0,174.03,173.99,29.14390801]
[1730128522082,70.0,174.01,173.99,0.5946434]
[1730128522878,70.0,174.03,173.99,0.5946434]
[1730128523087,70.0,174.05,174.01,28.54926461]
[1730128523678,70.0,174.05,174.02,28.54926461]
[1730128524092,70.0,174.05,174.01,28.54926461]
[1730128524291,75.7455,174.05,174.01,28.54926461]
[1730128524468,75.7455,174.05,173.99,0.5946434]
[1730128524469,76.0849,174.07,174.03,28.54926461]
[1730128524812,70.0,174.09,174.06,28.54926461]
[1730128524966,70.0,174.09,173.99,15.8308434]
[1730128524967,6.2914,174.11,174.08,28.54926461]
[1730128525168,70.0,174.11,174.08,28.54926461]
[1730128525395,70.0,174.11,174.07,28.54926461]
[1730128525977,70.0,174.11,174.06,28.54926461]
[1730128526891,75.7435,174.11,174.06,28.54926461]
[1730128527098,75.7435,174.11,174.07,28.54926461]
[1730128527967,70.0,174.13,174.09,28.54926461]
[1730128528167,34.84066461,174.15,174.01,0.1]
[1730128528168,76.2914,174.15,174.12,28.54926461]
[1730128528571,82.0337,174.15,174.12,28.54926461]
[1730128529372,82.0337,174.15,174.11,28.54926461]
[1730128529975,82.0337,174.15,174.1,28.54926461]
[1730128530180,98.54926461,174.13,174.07,28.54926461]
[1730128530377,70.0,174.13,174.08,28.54926461]
[1730128530977,75.7429,174.13,174.08,28.54926461]
[1730128531700,76.2914,174.15,174.11,28.54926461]
[1730128531884,70.0,174.17,174.13,28.54926461]
[1730128532197,75.7416,174.17,174.13,28.54926461]
[1730128532676,16.1799,174.18,174.15,28.54926461]
[1730128532878,70.0,174.17,174.15,28.54926461]
[1730128533078,70.0,174.17,174.14,28.54926461]
[1730128535088,70.0,174.17,174.15,28.54926461]
[1730128535694,75.7416,174.17,174.13,28.54926461]
[1730128535997,75.7416,174.17,174.12,28.54926461]
[1730128536199,75.7416,174.17,174.13,28.54926461]
[1730128537072,70.0,174.19,174.15,28.54926461]
[1730128537273,70.0,174.19,174.17,28.54926461]
[1730128537475,70.0,174.21,174.18,28.54926461]
[1730128537693,15.5395,174.22,174.19,28.54926461]
[1730128537881,70.0,174.21,174.2,5.58277865]
[1730128538087,70.0,174.21,174.18,28.54926461]
[1730128539203,21.2794,174.22,174.18,28.54926461]
[1730128539511,75.7395,174.23,174.2,28.54926461]
[1730128539672,75.7395,174.23,174.19,28.54926461]
[1730128540301,70.0,174.23,174.21,28.54926461]
[1730128540594,70.0,174.23,174.19,28.54926461]
[1730128541401,86.502,174.26,174.21,28.54926461]
[1730128541697,5.7376,174.29,174.25,28.54926461]
[1730128541888,70.0,174.28,174.26,28.54926461]
[1730128542214,70.0,174.3,174.27,28.54926461]
[1730128542388,75.7373,174.3,174.27,28.54926461]
[1730128542587,75.7373,174.3,174.24,28.54926461]
[1730128542886,70.0,174.28,174.23,28.54926461]
[1730128543089,70.0,174.28,174.24,28.54926461]
[1730128543293,104.28656461,174.3,174.24,28.54926461]
[1730128543501,70.0,174.3,174.26,28.54926461]
[1730128543681,70.0,174.3,174.27,28.54926461]
[1730128543883,70.0,174.3,174.26,28.54926461]
[1730128544103,75.7373,174.3,174.26,28.54926461]
[1730128545709,70.0,174.28,174.24,28.54926461]
[1730128545904,70.0,174.28,174.25,28.54926461]
[1730128546404,16.2918,174.31,174.27,28.54926461]
[1730128546612,76.3402,174.32,174.28,17.79732533]
[1730128547303,75.7362,174.34,174.3,17.79732533]
[1730128547504,75.7362,174.34,174.32,17.79732533]
[1730128547505,70.0,174.34,174.32,17.79732533]
[1730128547814,70.0,174.36,174.33,17.79732533]
[1730128548311,6.4091,174.37,174.33,17.79732533]
[1730128548510,75.7346,174.38,174.34,28.45538585]
[1730128548885,70.0,174.36,174.33,28.45538585]
[1730128549086,70.0,174.36,174.32,28.45538585]
[1730128549285,70.0,174.36,174.33,28.45538585]
[1730128549486,5.7351,174.37,174.33,28.45538585]
[1730128549703,5.7351,174.37,174.34,28.45538585]
[1730128549908,15.6196,174.39,174.36,28.45538585]
[1730128550212,75.7339,174.4,174.37,28.45538585]
[1730128550398,75.7339,174.4,174.36,28.45538585]
[1730128550783,75.7339,174.4,174.35,28.45538585]
[1730128550989,75.7339,174.4,174.36,28.45538585]
[1730128551397,70.0,174.4,174.38,28.45538585]
[1730128552001,70.0,174.4,174.37,28.45538585]
[1730128552318,70.0,174.4,174.38,28.45538585]
[1730128552495,70.0,174.4,174.37,28.45538585]
[1730128553800,75.7333,174.42,174.38,28.45538585]
[1730128554118,70.0,174.4,174.34,20.0]
[1730128554315,70.0,174.41,174.37,28.45538585]
[1730128554614,70.0,174.41,174.36,28.45538585]
[1730128554789,70.0,174.39,174.35,28.45538585]
[1730128555412,70.0,174.41,174.37,28.45538585]
[1730128555791,70.0,174.41,174.36,28.45538585]